Cogmind - Beta 16 @@@ ROGUE MODE // 2025.11.15 @ 18:12:13 Player: Lazz Result: Destroyed by S-43 Plague with Heavy Machine Gun Performance ------------- Evolutions (9) 4500 Regions Visited (16) 3200 Robots Destroyed (41) 205 Value Destroyed (1104) 1104 Prototype IDs (29) 580 Alien Tech Used (0) 0 Bonus (300) 300 TOTAL SCORE: 9889 Bonus ------- Aligned with FarCom 300 Cogmind --------- Core Integrity 0/1600 Matter 92/300 Energy 50/100 System Corruption 12% Temperature Cool (2) Movement Flying (40) Location -1/Access Parts ------- > --- POWER (3) -------- (None) > --- PROPULSION (8) --- Q-thruster > --- UTILITY (12) ----- Enhanced Optical Array Improved Signal Interpreter Advanced Launcher Guidance Computer > --- WEAPON (2) ------- (None) > --- INVENTORY (5) ---- Enhanced Biometal Leg Enhanced Biometal Leg Enhanced Nova Cannon Peak State ------------ > --- POWER ------------ Deuterium Engine Light Angular Momentum Engine > --- PROPULSION ------- Improved VTOL Module Improved Cesium-ion Thruster Improved Cesium-ion Thruster Impulse Thruster Impulse Thruster Q-thruster > --- UTILITY ---------- Power Amplifier Advanced Power Amplifier Machine Analyzer Improved Signal Interpreter Transmission Jammer ECM Suite Improved Shield Generator Advanced Point Defense System Improved Hacking Suite System Guard > --- WEAPON ----------- Chainsword > --- INVENTORY -------- Flight Unit System Restoration Module Improved EM Pulse Cannon Coil Gun [Rating: 94] Favorites ----------- Power Deuterium Engine Engine Deuterium Engine Propulsion Improved Cesium-ion Thruster Treads Light Treads Leg Aluminum Leg Flight Unit Improved Cesium-ion Thruster Utility Large Storage Unit Device ECM Suite Storage Large Storage Unit Processor Machine Analyzer Hackware Improved Hacking Suite Protection Improved Medium Armor Plating Weapon Grenade Launcher Energy Gun EM Pulse Gun Energy Cannon Enhanced Nova Cannon Ballistic Gun High-powered Shotgun Ballistic Cannon Heavy Gauss Cannon Launcher Grenade Launcher Special Weapon Mining Laser Slashing Weapon Chainsword Build | -11 -10 -10 -10 -9 -8 -7 -7 -7 -6 -5 -5 -5 -4 -3 -2 -1 ------- Run | Yrd Mat Min Exi Min Mat Fac Low Low Fac Fac Upp Upp Fac Res Res Acc Slots Evolved 18 | . . . . . 4 2 . . 2 2 . . 2 2 2 2 Power 2 | . . . . . . 1 . . . . . . . . 1 . Propulsion 6 | . . . . . 2 1 . . 1 . . . . . . 2 Utility 10 | . . . . . 2 . . . 1 2 . . 2 2 1 . Weapon . | . . . . . . . . . . . . . . . . . Parts Attached 75 | 7 9 2 . 3 10 5 1 . 5 3 1 1 5 4 11 8 Power 7 | 1 1 . . . 2 1 . . . . . . 2 . . . Engine 7 | 1 1 . . . 2 1 . . . . . . 2 . . . Core . | . . . . . . . . . . . . . . . . . Reactor . | . . . . . . . . . . . . . . . . . Propulsion 21 | 2 2 . . 1 1 2 . . 3 . 1 . . 3 1 5 Treads 3 | . 2 . . 1 . . . . . . . . . . . . Leg 3 | 2 . . . . . . . . . . . . . . 1 . Wheel . | . . . . . . . . . . . . . . . . . Hover . | . . . . . . . . . . . . . . . . . Flight 15 | . . . . . 1 2 . . 3 . 1 . . 3 . 5 Utility 32 | 2 1 1 . 1 4 2 . . 2 3 . 1 3 1 9 2 Device 15 | 1 . 1 . . 1 . . . 1 2 . . 2 1 6 . Storage 2 | 1 1 . . . . . . . . . . . . . . . Processor 6 | . . . . . 1 1 . . . . . 1 1 . 2 . Hackware 4 | . . . . . . . . . . 1 . . . . 1 2 Protection 5 | . . . . 1 2 1 . . 1 . . . . . . . Artifact . | . . . . . . . . . . . . . . . . . Weapon 15 | 2 5 1 . 1 3 . 1 . . . . . . . 1 1 Energy Gun 6 | 1 4 1 . . . . . . . . . . . . . . Energy Cannon 1 | . . . . . . . . . . . . . . . . 1 Ballistic Gun 4 | 1 . . . . 3 . . . . . . . . . . . Ballistic Cannon 1 | . . . . . . . . . . . . . . . 1 . Launcher 1 | . 1 . . . . . . . . . . . . . . . Special Weapon 1 | . . . . 1 . . . . . . . . . . . . Impact Weapon . | . . . . . . . . . . . . . . . . . Slashing Weapon 1 | . . . . . . . 1 . . . . . . . . . Piercing Weapon . | . . . . . . . . . . . . . . . . . Special Melee Weapon . | . . . . . . . . . . . . . . . . . Unidentified Prototypes 6 | . . . . . 1 1 . . 1 . . . . . 2 1 Parts Lost 36 | . 4 1 . 2 2 1 . . . . 2 2 . 8 2 12 Power 4 | . 1 . . 1 . . . . . . . . . . . 2 Propulsion 11 | . 1 . . . . . . . . . 1 1 . 2 2 4 Utility 15 | . . . . . 2 1 . . . . . 1 . 5 . 6 Weapon 6 | . 2 1 . 1 . . . . . . 1 . . 1 . . Highest Loss Streak 8 | . 2 1 . 1 2 1 . . . . 2 2 . 8 1 5 To Critical Strikes 2 | . . . . 1 . . . . . . . 1 . . . . Average Backups 8 | 3 6 9 10 11 9 10 14 14 14 14 13 12 3 3 2 4 Power . | . . . . . . . 1 1 1 2 2 2 . . . . Propulsion 2 | 1 1 2 3 5 2 1 1 1 2 3 2 1 . . . 3 Utility 2 | . 1 2 2 2 2 3 5 6 4 4 4 3 1 . 1 . Weapon 3 | . 3 5 5 4 4 4 6 6 5 5 5 5 2 2 . 1 Tool/Special . | . . . . . . . . . . . . . . . . . Unused Backups 18 | . . . . . 1 1 2 . 4 . . . 3 3 . 4 Power . | . . . . . . . . . . . . . . . . . Propulsion 5 | . . . . . 1 . 1 . . . . . . . . 3 Utility 3 | . . . . . . . . . 2 . . . . 1 . . Weapon 10 | . . . . . . 1 1 . 2 . . . 3 2 . 1 Tool/Special . | . . . . . . . . . . . . . . . . . Average Slot Usage (%) 74 | . 98 98 100 89 68 73 76 76 79 81 80 76 81 78 32 30 Engine 9 | . 12 14 14 6 8 12 15 15 13 11 11 11 9 8 . 2 Treads 7 | . 13 28 28 28 . . . . . . . . . . . . Flight 10 | . . . . . 8 15 15 15 20 17 17 17 21 21 10 4 Device 11 | . 14 14 14 6 . 7 7 7 9 22 23 17 19 24 5 3 Storage 6 | . 14 14 14 14 9 7 7 7 6 5 5 5 . . . . Processor 6 | . . . . . 8 7 7 7 6 5 5 9 14 14 9 14 Hackware 2 | . . . . . . . . . . 4 5 5 5 4 4 5 Protection 3 | . . . . 7 14 7 7 7 9 . . . 4 . . . Energy Gun 6 | . 20 26 28 2 3 . . . . . . . . . . . Ballistic Gun 1 | . 7 . . . 5 10 6 . . . . . . . . . Launcher 2 | . . . . 13 3 3 7 7 6 5 3 . . . . . Special Weapon 1 | . . . . 10 5 . . . . . . . . . . . Slashing Weapon 1 | . . . . . . . . 7 6 5 5 5 5 3 . . Peak Build Rating 94 | 9 10 11 14 14 47 58 60 60 71 80 81 80 65 94 65 71 Average Rating 44 | 5 9 10 13 11 43 52 58 60 69 79 80 72 60 74 41 48 On Entrance 40 | . 9 10 11 14 10 45 58 60 60 71 80 80 49 65 12 53 Avg Prop Armor Cover (%) 7 | . . . . . . . . . . . . . . . 7 . Naked Turns . | . . . . . . . . . . . . . . . . . Heaviest Build 59 | 12 30 31 31 31 39 51 51 51 59 53 47 49 36 36 31 13 Greatest Support 62 | 20 40 40 40 40 50 55 55 55 62 62 62 62 21 39 30 22 Greatest Overweight (x) 4 | . . . . . . . . . 1 . . 2 1 1 2 4 Average Overweight (x) . | . . . . . . . . . . . . . 1 . . . Largest Inventory Capacity 15 | 8 15 15 15 15 15 15 15 15 15 15 15 15 15 5 5 5 Average Capacity 11 | 7 8 15 15 15 15 15 15 15 15 15 15 15 5 5 5 5 Most Carried 15 | 4 9 10 14 15 15 15 15 15 15 14 14 13 10 5 5 5 Average Carried 9 | 3 6 9 12 14 8 10 14 15 14 13 13 12 3 3 3 4 Final Capacity 15 | 8 15 15 15 15 15 15 15 15 15 15 15 15 5 5 5 5 Final Carried 15 | 4 9 10 14 15 9 14 15 15 15 14 13 10 3 3 3 3 Class Distribution -------------------- 56% | Mutant 26% | Infiltrator-Mutant 6% | Sprinter 4% | Hacker-Scout Dominant Class ---------------- Mutant | -10/Materials Mutant | -10/Mines Mutant | -10/Exiles Mutant | -9/Mines Mutant | -8/Materials Mutant | -7/Factory Mutant | -7/Lower Caves Mutant | -7/Lower Caves Infiltrator-Mutant | -6/Factory Infiltrator-Mutant | -5/Factory Infiltrator-Mutant | -5/Upper Caves Infiltrator-Mutant | -5/Upper Caves Infiltrator-Mutant | -4/Factory Infiltrator-Mutant | -3/Research Sprinter | -2/Research Hacker-Scout | -1/Access Resources | -11 -10 -10 -10 -9 -8 -7 -7 -7 -6 -5 -5 -5 -4 -3 -2 -1 ----------- Run | Yrd Mat Min Exi Min Mat Fac Low Low Fac Fac Upp Upp Fac Res Res Acc Matter Collected 1326 | 276 114 25 . 109 83 132 212 . . . 143 35 70 . 4 123 Remotely . | . . . . . . . . . . . . . . . . . Salvage Created 982 | 123 320 81 . 107 138 86 80 . . . 47 . . . . . Parts 57 | 3 17 4 . 10 8 7 5 . . . 3 . . . . . Haulers Intercepted . | . . . . . . . . . . . . . . . . . Recyclers Shooed 2 | . . . . . . 1 . . . . . . . . 1 . Parts Field Recycled . | . . . . . . . . . . . . . . . . . Retrieved Matter . | . . . . . . . . . . . . . . . . . Parts Self-Destructed 14 | . . . . . . . 6 . . . 3 5 . . . . Prevented . | . . . . . . . . . . . . . . . . . Parts Restored . | . . . . . . . . . . . . . . . . . Kills | -11 -10 -10 -10 -9 -8 -7 -7 -7 -6 -5 -5 -5 -4 -3 -2 -1 ------- Run | Yrd Mat Min Exi Min Mat Fac Low Low Fac Fac Upp Upp Fac Res Res Acc Combat Hostiles Destroyed 33 | . 8 2 . 7 6 4 2 . . . 4 . . . . . Guns 11 | . 7 1 . . 3 . . . . . . . . . . . AOE 22 | . 1 1 . 7 3 4 2 . . . 4 . . . . . Classes Destroyed 11 | 2 4 . . 2 3 . . . . . . . . . . . Worker 1 | . . . . . 1 . . . . . . . . . . . Builder 1 | . . . . 1 . . . . . . . . . . . . Tunneler 2 | 2 . . . . . . . . . . . . . . . . Recycler 2 | 1 . . . . . 1 . . . . . . . . . . Operator 1 | . 1 . . . . . . . . . . . . . . . Watcher 1 | . 1 . . . . . . . . . . . . . . . Swarmer 17 | . 2 . . 4 3 4 . . . . 4 . . . . . Grunt 12 | . 6 2 . 2 . . 2 . . . . . . . . . Brawler 1 | . . . . 1 . . . . . . . . . . . . Sentry 2 | . . . . . 2 . . . . . . . . . . . Hunter 1 | . . . . . 1 . . . . . . . . . . . Best Kill Streak 5 | 2 3 2 . 4 3 5 2 . . . 4 . . . . . Combat Bots Only 4 | . 3 2 . 4 3 4 2 . . . 4 . . . . . Max Kills in Single Turn 3 | 2 2 1 . 2 2 3 2 . . . 2 . . . . . Gunslinging . | . . . . . . . . . . . . . . . . . Exploded 3 | . 1 1 . 1 2 3 2 . . . 2 . . . . . Melee . | . . . . . . . . . . . . . . . . . Uniques/NPCs Destroyed . | . . . . . . . . . . . . . . . . . Combat | -11 -10 -10 -10 -9 -8 -7 -7 -7 -6 -5 -5 -5 -4 -3 -2 -1 -------- Run | Yrd Mat Min Exi Min Mat Fac Low Low Fac Fac Upp Upp Fac Res Res Acc Hostile Shots Fired 657 | . 81 9 . 19 51 16 24 5 38 4 32 8 16 65 66 223 Missed 307 | . 17 2 . 3 17 7 11 3 27 2 15 2 7 29 39 126 Hits 350 | . 64 7 . 16 34 9 13 2 11 2 17 6 9 36 27 97 Melee 14 | . . . . . . . 1 2 . . . . . 11 . . Projectile 336 | . 64 7 . 16 34 9 12 . 11 2 17 6 9 25 27 97 AOE 2 | . . . . . . . . . . . . . . . . 2 Critical Strikes 20 | . . . . 1 1 . 2 . . 1 . 1 1 6 1 6 Actively Blocked 1 | . . . . . 1 . . . . . . . . . . . Damage Taken 6621 | . 812 163 . 156 432 185 226 54 207 48 315 172 242 852 434 2323 Core 2892 | . 188 21 . 10 32 . 14 27 . . 35 30 118 550 257 1610 Absorbed by Shields 96 | . . . . . . . . . . . . . 39 57 . . Redirected to Shielding 102 | . . . . . 78 24 . . . . . . . . . . Core Remaining (%) 80 | 100 . . . 12 94 . . 94 100 . . 93 89 57 82 . Volleys Fired 117 | 6 37 5 . 12 22 10 4 . . . 3 . . . 9 9 Largest 2 | 2 2 2 . 2 2 1 1 . . . 1 . . . 1 1 Hottest 120 | 70 85 80 . 100 100 100 30 . . . 30 . . . 51 120 Shots Fired 174 | 12 73 9 . 14 31 10 4 . . . 3 . . . 9 9 Gun 111 | 12 71 9 . 2 17 . . . . . . . . . . . Cannon 18 | . . . . . . . . . . . . . . . 9 9 Launcher 27 | . 2 . . 8 4 6 4 . . . 3 . . . . . Special 18 | . . . . 4 10 4 . . . . . . . . . . Kinetic 57 | 6 27 . . . 15 . . . . . . . . . 9 . Thermal 63 | 6 28 . . 4 12 4 . . . . . . . . . 9 Explosive 27 | . 2 . . 8 4 6 4 . . . 3 . . . . . Electromagnetic 27 | . 16 9 . 2 . . . . . . . . . . . . Robot Hit Streak 10 | 5 8 3 . 4 10 1 3 . . . 2 . . . . . Robot Miss Streak 3 | 2 3 1 . 1 2 2 . . . . 1 . . . . . Penetration Max . | . . . . . . . . . . . . . . . . . Secondary Targets 2 | . 2 . . . . . . . . . . . . . . . Max Gunslinging Chain 1 | . 1 . . . . . . . . . . . . . . . Shots Hit Robots 89 | 7 48 6 . 7 15 1 2 1 . . 2 . . . . . Core Hits 67 | 4 17 3 . 11 13 9 4 . . . 6 . . . . . Critical Kills . | . . . . . . . . . . . . . . . . . Critical Parts Destroyed 1 | 1 . . . . . . . . . . . . . . . . Critical Strikes 3 | 1 1 . . . . . . . . . . . . . 1 . Destroy 1 | 1 . . . . . . . . . . . . . . . . Blast 1 | . . . . . . . . . . . . . . . 1 . Corrupt 1 | . 1 . . . . . . . . . . . . . . . Melee Attacks 69 | . . . . . . . 1 5 29 9 . . 8 17 . . Impact . | . . . . . . . . . . . . . . . . . Slashing 69 | . . . . . . . 1 5 29 9 . . 8 17 . . Piercing . | . . . . . . . . . . . . . . . . . Sneak Attacks . | . . . . . . . . . . . . . . . . . Combat Hostiles . | . . . . . . . . . . . . . . . . . Follow-up Attacks . | . . . . . . . . . . . . . . . . . Damage Inflicted 3010 | 84 848 177 . 458 490 452 180 36 . . 241 . . 1 43 . Guns 926 | 84 542 78 . . 222 . . . . . . . . . . . Cannons 43 | . . . . . . . . . . . . . . . 43 . Explosions 1996 | . 304 99 . 452 268 452 180 . . . 241 . . . . . Melee 36 | . . . . . . . . 36 . . . . . . . . Ramming 9 | . 2 . . 6 . . . . . . . . . 1 . . Kinetic 429 | 34 130 . . . 222 . . . . . . . . . 43 . Thermal 723 | 50 506 99 . . . 68 . . . . . . . . . . Explosive 1548 | . 23 . . 452 268 384 180 . . . 241 . . . . . Electromagnetic 265 | . 187 78 . . . . . . . . . . . . . . Impact . | . . . . . . . . . . . . . . . . . Slashing 36 | . . . . . . . . 36 . . . . . . . . Piercing . | . . . . . . . . . . . . . . . . . Highest Corruption 12 | . . . . . . . 1 1 2 . . . . 4 1 12 Average Corruption 2 | . . . . . . . 1 1 1 . . . . 4 1 4 Corruption Purged . | . . . . . . . . . . . . . . . . . Corruption Blocked . | . . . . . . . . . . . . . . . . . Effects 11 | . . . . . . . . . 4 . . . . . 1 6 Message Errors 2 | . . . . . . . . . 1 . . . . . . 1 Matter Fused 1 | . . . . . . . . . . . . . . . . 1 Heat Flow Errors 2 | . . . . . . . . . . . . . . . . 2 Energy Discharges 3 | . . . . . . . . . 1 . . . . . 1 1 Parts Rejected 1 | . . . . . . . . . 1 . . . . . . . Data Loss (minor) 1 | . . . . . . . . . 1 . . . . . . . Misdirections 1 | . . . . . . . . . . . . . . . . 1 Overload Shots . | . . . . . . . . . . . . . . . . . Overflow Damage 163 | . 115 6 . 7 . 11 . . . . 11 . . . 13 . Projectiles 13 | . . . . . . . . . . . . . . . 13 . Explosions 150 | . 115 6 . 7 . 11 . . . . 11 . . . . . Melee . | . . . . . . . . . . . . . . . . . Knockbacks 1 | . . . . . . . . . . . . . . . 1 . Impact . | . . . . . . . . . . . . . . . . . Kinetic 1 | . . . . . . . . . . . . . . . 1 . Secondary . | . . . . . . . . . . . . . . . . . Self-Inflicted Damage 251 | . 84 75 . 17 14 45 . . . . 16 . . . . . Shots 8 | . 1 2 . 1 1 2 . . . . 1 . . . . . Rammed 4 | . 1 . . 1 . . . . . . . . . 2 . . Targets Rammed 4 | . 1 . . 1 . . . . . . . . . 2 . . Kicked . | . . . . . . . . . . . . . . . . . Crushed . | . . . . . . . . . . . . . . . . . Highest Temperature 303 | 80 303 147 . 12 95 80 33 . 114 . 13 1 . 69 . 164 Average Temperature 54 | 34 105 81 . 7 37 27 16 . 53 . 6 1 . 27 . 34 Received Heat Transfer 818 | . 354 51 . 30 72 . 72 . 6 36 36 36 29 33 9 54 Siege Activations . | . . . . . . . . . . . . . . . . . Martial Activations . | . . . . . . . . . . . . . . . . . Shielding Activations . | . . . . . . . . . . . . . . . . . Robots Disrupted . | . . . . . . . . . . . . . . . . . Combat Hostiles . | . . . . . . . . . . . . . . . . . Robots Corrupted . | . . . . . . . . . . . . . . . . . Combat Hostiles . | . . . . . . . . . . . . . . . . . Parts Fried . | . . . . . . . . . . . . . . . . . Impact Corruptions . | . . . . . . . . . . . . . . . . . Robots Melted . | . . . . . . . . . . . . . . . . . Combat Hostiles . | . . . . . . . . . . . . . . . . . Parts Melted 1 | . 1 . . . . . . . . . . . . . . . Heat Transferred 1071 | 148 723 150 . . . 50 . . . . . . . . . . Parts Sabotaged . | . . . . . . . . . . . . . . . . . Parts Stolen . | . . . . . . . . . . . . . . . . . Parts Stripped . | . . . . . . . . . . . . . . . . . Power Chain Reactions 1 | . . 1 . . . . . . . . . . . . . . Alert | -11 -10 -10 -10 -9 -8 -7 -7 -7 -6 -5 -5 -5 -4 -3 -2 -1 ------- Run | Yrd Mat Min Exi Min Mat Fac Low Low Fac Fac Upp Upp Fac Res Res Acc Maximum Alert Level 1 | . 1 . . . 1 . . . . . . . . . . 1 Low Security (%) 94 | 100 87 100 . 100 91 100 . . 100 100 . . 100 100 100 72 Level 1 5 | . 12 . . . 8 . . . . . . . . . . 27 Level 2 . | . . . . . . . . . . . . . . . . . Level 3 . | . . . . . . . . . . . . . . . . . Level 4 . | . . . . . . . . . . . . . . . . . Level 5 . | . . . . . . . . . . . . . . . . . High Security . | . . . . . . . . . . . . . . . . . Max Security . | . . . . . . . . . . . . . . . . . Peak Influence 320 | 10 226 72 . 139 211 156 . . 31 8 . . 24 18 96 320 Initial 95 | . . 8 . . 20 95 . . 4 . . . . 6 . 27 Average 45 | . 122 48 . 74 46 89 . . 4 . . . 2 3 29 93 Influence Increases 2375 | 15 373 74 . 269 311 226 40 . 113 18 90 . 54 72 219 501 Destroy 0b10 Robot/C 660 | . 160 40 . 140 120 80 40 . . . 80 . . . . . Destroy 0b10 Robot/NC 40 | 15 10 . . 5 5 5 . . . . . . . . . . Destroy Leader 132 | . 42 10 . 20 40 10 . . . . 10 . . . . . Successful Hack 108 | . . . . . 6 5 . . 41 . . . 38 18 . . Disable Machine 120 | . 60 15 . . . 30 . . 15 . . . . . . . Destroy Structure 295 | . 26 9 . 44 35 51 . . 27 18 . . 16 24 24 21 Partial Spotted 105 | . . . . . . 45 . . 30 . . . . 15 . 15 Lose Combat Pursuer 915 | . 75 . . 60 105 . . . . . . . . 15 195 465 Influence Decreases 2196 | 15 350 55 42 216 154 310 156 2 121 18 90 . 40 86 173 368 Entered New Map 285 | . . 15 42 . 33 115 47 2 4 . . . . 8 . 19 Time Decay 1324 | 15 160 30 . 196 101 110 109 . 117 18 70 . 40 61 123 174 Search Patrol Dispatched 100 | . . . . . . . . . . . . . . . . 100 Lost Part 217 | . 40 10 . 20 20 10 . . . . 20 . . 2 20 75 Lost Ally 45 | . . . . . . . . . . . . . . 15 30 . Purge Threat 225 | . 150 . . . . 75 . . . . . . . . . . Squads Dispatched 22 | . 1 . . . 2 1 . . 3 1 . . . 4 3 7 Investigation 4 | . . . . . 1 1 . . 1 . . . . . . 1 Extermination 8 | . . . . . . . . . 1 1 . . . 1 1 4 Reinforcement 10 | . 1 . . . 1 . . . 1 . . . . 3 2 2 Assault . | . . . . . . . . . . . . . . . . . Garrison . | . . . . . . . . . . . . . . . . . Intercept . | . . . . . . . . . . . . . . . . . Searches Triggered 1 | . . . . . . . . . . . . . . . . 1 Construction Impeded . | . . . . . . . . . . . . . . . . . Haulers Reinforced . | . . . . . . . . . . . . . . . . . Active Scanning Responses . | . . . . . . . . . . . . . . . . . Cargo Convoy Interrupts . | . . . . . . . . . . . . . . . . . Stealth | -11 -10 -10 -10 -9 -8 -7 -7 -7 -6 -5 -5 -5 -4 -3 -2 -1 --------- Run | Yrd Mat Min Exi Min Mat Fac Low Low Fac Fac Upp Upp Fac Res Res Acc Distress Signals 4 | . 1 . . . 1 . . . . . . . 2 . . . Communications Jammed 4 | . . . . . . . . . . . . . . 2 . 2 Distress Signals 4 | . . . . . . . . . . . . . . 2 . 2 Times Spotted 186 | . 15 2 . 10 22 5 10 1 10 1 21 2 6 14 16 51 Peak Tracking Total 14 | . 5 2 . 4 10 4 5 1 5 1 9 5 7 14 8 14 Tactical Retreats 47 | . 5 . . 2 4 . 3 . 5 . 6 3 4 1 5 9 ECM-based Alert Blocks 51 | . . . . . . . 7 . 8 . 19 6 11 . . . Traps | -11 -10 -10 -10 -9 -8 -7 -7 -7 -6 -5 -5 -5 -4 -3 -2 -1 ------- Run | Yrd Mat Min Exi Min Mat Fac Low Low Fac Fac Upp Upp Fac Res Res Acc Traps Triggered 9 | . . . . . 1 . . . 1 . . . 2 3 1 1 Indirectly . | . . . . . . . . . . . . . . . . . Trap Hack Attempts . | . . . . . . . . . . . . . . . . . Triggered . | . . . . . . . . . . . . . . . . . Disarmed . | . . . . . . . . . . . . . . . . . Reprogrammed . | . . . . . . . . . . . . . . . . . Reused . | . . . . . . . . . . . . . . . . . Traps Extracted . | . . . . . . . . . . . . . . . . . Installed . | . . . . . . . . . . . . . . . . . Triggered . | . . . . . . . . . . . . . . . . . Machines | -11 -10 -10 -10 -9 -8 -7 -7 -7 -6 -5 -5 -5 -4 -3 -2 -1 ---------- Run | Yrd Mat Min Exi Min Mat Fac Low Low Fac Fac Upp Upp Fac Res Res Acc Machines Disabled 9 | . 5 1 . . . 2 . . 1 . . . . . . . Max in Single Turn 4 | . 4 1 . . . 1 . . 1 . . . . . . . Garrison Access 1 | . . . . . . . . . . 1 . . . . . . Machines Repaired . | . . . . . . . . . . . . . . . . . Machines Dismantled . | . . . . . . . . . . . . . . . . . Machines Sabotaged . | . . . . . . . . . . . . . . . . . Overloaded Fab Kills . | . . . . . . . . . . . . . . . . . Hacking | -11 -10 -10 -10 -9 -8 -7 -7 -7 -6 -5 -5 -5 -4 -3 -2 -1 --------- Run | Yrd Mat Min Exi Min Mat Fac Low Low Fac Fac Upp Upp Fac Res Res Acc Machines Accessed 36 | . 1 . 1 . 2 5 1 . 8 2 1 . 3 2 6 4 Terminals 24 | . 1 . . . 2 5 . . 6 1 . . 2 1 4 2 Fabricators 5 | . . . . . . . . . 2 . . . 1 . 1 1 Repair Stations 1 | . . . . . . . . . . . . . . . 1 . Recycling Units 1 | . . . . . . . . . . . . . . 1 . . Scanalyzers . | . . . . . . . . . . . . . . . . . Garrison Access 2 | . . . . . . . . . . 1 . . . . . 1 Total Hacks 68 | . 5 . 1 . 3 8 1 . 16 4 1 . 6 4 12 7 Successful 23 | . 2 . 1 . 2 3 1 . 6 1 1 . 2 1 3 . Failed 45 | . 3 . . . 1 5 . . 10 3 . . 4 3 9 7 Catastrophic 13 | . . . . . 1 1 . . 4 . . . 2 1 2 2 Database Lockouts . | . . . . . . . . . . . . . . . . . Manual 29 | . 4 . 1 . 1 2 . . 9 . . . 4 2 6 . Terminals 48 | . 5 . . . 3 8 . . 10 3 . . 5 2 10 2 Fabricators 10 | . . . . . . . . . 6 . . . 1 . 1 2 Repair Stations 1 | . . . . . . . . . . . . . . . 1 . Recycling Units 2 | . . . . . . . . . . . . . . 2 . . Scanalyzers . | . . . . . . . . . . . . . . . . . Garrison Access 4 | . . . . . . . . . . 1 . . . . . 3 Terminal Hacks 14 | . 2 . 1 . 2 3 1 . 1 . 1 . 1 1 1 . Open Door 2 | . . . . . . . 1 . . . 1 . . . . . Emergency Access Points 1 | . . . . . 1 . . . . . . . . . . . Terminal Index 1 | . . . . . . . . . . . . . . . 1 . Unreport Threat 3 | . 1 . . . . 1 . . . . . . . 1 . . Locate Traps 1 | . . . . . . 1 . . . . . . . . . . Registered Components 1 | . . . . . . . . . . . . . 1 . . . Zone Layout 4 | . 1 . . . 1 1 . . 1 . . . . . . . Proto ID Catalog 1 | . . . 1 . . . . . . . . . . . . . Fabricator Hacks 3 | . . . . . . . . . 2 . . . . . 1 . Network Status 3 | . . . . . . . . . 2 . . . . . 1 . Repair Station Hacks 1 | . . . . . . . . . . . . . . . 1 . Refit 1 | . . . . . . . . . . . . . . . 1 . Recycling Unit Hacks . | . . . . . . . . . . . . . . . . . Scanalyzer . | . . . . . . . . . . . . . . . . . Garrison Access Hacks 1 | . . . . . . . . . . 1 . . . . . . Seal Access 1 | . . . . . . . . . . 1 . . . . . . Unauthorized Hacks 4 | . . . . . . . . . 3 . . . 1 . . . Terminals 1 | . . . . . . . . . 1 . . . . . . . Botnet 1 | . . . . . . . . . 1 . . . . . . . Fabricators 3 | . . . . . . . . . 2 . . . 1 . . . Fabnet 3 | . . . . . . . . . 2 . . . 1 . . . Repair Stations . | . . . . . . . . . . . . . . . . . Recycling Units . | . . . . . . . . . . . . . . . . . Scanalyzers . | . . . . . . . . . . . . . . . . . Garrison Access . | . . . . . . . . . . . . . . . . . Data Cores Recovered . | . . . . . . . . . . . . . . . . . Used . | . . . . . . . . . . . . . . . . . Hacking Detections 28 | . 1 . . . 2 3 . . 8 1 . . 3 2 4 4 Full Trace Events 3 | . . . . . . 1 . . 1 . . . . . . 1 Feedback Events 3 | . . . . . . . . . 1 . . . . . . 2 Corruption 2 | . . . . . . . . . 1 . . . . . . 1 Hackware Fried 1 | . . . . . . . . . . . . . . . . 1 Feedback Blocked . | . . . . . . . . . . . . . . . . . Robot Schematics Acquired . | . . . . . . . . . . . . . . . . . Robots Built . | . . . . . . . . . . . . . . . . . Authchips . | . . . . . . . . . . . . . . . . . Time . | . . . . . . . . . . . . . . . . . Total Robot Build Rating . | . . . . . . . . . . . . . . . . . Part Schematics Acquired . | . . . . . . . . . . . . . . . . . Parts Built . | . . . . . . . . . . . . . . . . . Authchips . | . . . . . . . . . . . . . . . . . Time . | . . . . . . . . . . . . . . . . . Total Part Build Rating . | . . . . . . . . . . . . . . . . . Part Studies Acquired . | . . . . . . . . . . . . . . . . . Parts Repaired . | . . . . . . . . . . . . . . . . . Time . | . . . . . . . . . . . . . . . . . Parts Recycled . | . . . . . . . . . . . . . . . . . Recycled Matter . | . . . . . . . . . . . . . . . . . Retrieved Matter . | . . . . . . . . . . . . . . . . . Retrieved Components . | . . . . . . . . . . . . . . . . . Parts Scanalyzed . | . . . . . . . . . . . . . . . . . Part Schematics Acquired . | . . . . . . . . . . . . . . . . . Parts Damaged . | . . . . . . . . . . . . . . . . . Bothacking | -11 -10 -10 -10 -9 -8 -7 -7 -7 -6 -5 -5 -5 -4 -3 -2 -1 ------------ Run | Yrd Mat Min Exi Min Mat Fac Low Low Fac Fac Upp Upp Fac Res Res Acc Used RIF Installer . | . . . . . . . . . . . . . . . . . Robots Hacked 1 | . . . . . . . . . . . . . . 1 . . Non-combat . | . . . . . . . . . . . . . . . . . Combat 1 | . . . . . . . . . . . . . . 1 . . Robot Hacks Applied . | . . . . . . . . . . . . . . . . . Relay Couplers Released . | . . . . . . . . . . . . . . . . . Fabnet Peak Effective % 6 | . . . . . . . . . . 6 6 6 2 3 1 . Autooverrided 1 | . . . . . . . . . . . . . . 1 . . Robots Rewired . | . . . . . . . . . . . . . . . . . Allies Hacked . | . . . . . . . . . . . . . . . . . Hacks Repelled . | . . . . . . . . . . . . . . . . . Allies | -11 -10 -10 -10 -9 -8 -7 -7 -7 -6 -5 -5 -5 -4 -3 -2 -1 -------- Run | Yrd Mat Min Exi Min Mat Fac Low Low Fac Fac Upp Upp Fac Res Res Acc Total Allies 1 | . . . . . . . . . . . . . . 1 . . Largest Group . | . . . . . . . . . . . . . . . . . Highest-Rated Group . | . . . . . . . . . . . . . . . . . Highest-Rated Ally . | . . . . . . . . . . . . . . . . . Total Orders 3 | . . . . . . . . . . . . . . . 3 . EXPLORE 3 | . . . . . . . . . . . . . . . 3 . Ally Attacks . | . . . . . . . . . . . . . . . . . Total Damage . | . . . . . . . . . . . . . . . . . Kills . | . . . . . . . . . . . . . . . . . Allies Corrupted . | . . . . . . . . . . . . . . . . . Allies Melted . | . . . . . . . . . . . . . . . . . Intel | -11 -10 -10 -10 -9 -8 -7 -7 -7 -6 -5 -5 -5 -4 -3 -2 -1 ------- Run | Yrd Mat Min Exi Min Mat Fac Low Low Fac Fac Upp Upp Fac Res Res Acc Active Infowar (turns) 3954 | 26 341 23 . . 18 310 259 18 477 444 255 73 336 300 507 567 Optics 580 | . . . . . . . . . . . . . . . 13 567 Terrain 390 | 26 341 23 . . . . . . . . . . . . . . Machine Analysis 3351 | . . . . . . 309 259 18 477 444 255 73 336 300 507 373 Cloaking 1021 | . . . . . . . . . 267 444 255 55 . . . . Jamming 1537 | . . . . . . . . . . 444 255 73 336 275 7 147 ECM 2465 | . . . . . 18 310 259 18 477 444 255 73 336 275 . . Robot Analysis Total . | . . . . . . . . . . . . . . . . . Derelict Logs Recovered 4 | . . . . 1 . . 1 . . . 2 . . . . . Drone Launches 8 | . . . . . . . . . . . . . . . 8 . Drone Recoveries 4 | . . . . . . . . . . . . . . . 4 . Exploration | -11 -10 -10 -10 -9 -8 -7 -7 -7 -6 -5 -5 -5 -4 -3 -2 -1 ------------- Run | Yrd Mat Min Exi Min Mat Fac Low Low Fac Fac Upp Upp Fac Res Res Acc Turns Passed 5812 | 109 341 78 813 431 493 311 259 18 477 444 255 73 336 300 507 567 Spaces Moved 7161 | 64 145 38 508 198 454 632 609 14 999 305 630 174 191 370 634 1196 Core 80 | 10 . . . . . . . . . . . . . 14 . 56 Treads 819 | . 75 38 508 198 . . . . . . . . . . . . Legs 131 | 54 70 . . . . . . . . . . . . . 7 . Wheels . | . . . . . . . . . . . . . . . . . Hover . | . . . . . . . . . . . . . . . . . Flight 6131 | . . . . . 454 632 609 14 999 305 630 174 191 356 627 1140 Fastest Speed 22 | 50 120 160 160 160 50 39 39 39 35 35 34 34 97 22 32 30 Average Speed 56 | 109 140 160 160 160 50 40 39 39 35 35 34 39 97 50 42 37 Slowest Speed 250 | 120 160 160 160 160 50 42 39 39 132 35 39 167 97 97 162 250 Overloaded Moves . | . . . . . . . . . . . . . . . . . Propulsion Burnouts . | . . . . . . . . . . . . . . . . . Robots Hopped 32 | . . . . . 10 2 . . 6 . . . . 1 4 9 Potential Cave-ins 12 | . . . . 5 . . . . . . . . . 5 . 2 Cave-ins Triggered . | . . . . . . . . . . . . . . . . . Exploration Rate (%) 31 | 4 29 13 91 55 46 15 67 8 32 8 76 14 9 11 23 36 Regions Visited 16 Branch Regions 7 Pre-discovered Areas 1 | . . . . . . . 1 . . . . . . . . . Known Exits Taken 4 | . . . . . . . . . . . . 1 1 1 1 . Unknown Exits Taken 12 | 1 1 1 1 1 1 1 1 1 1 1 1 . . . . . Scrap Searched 6 | . . 1 . 1 . . 1 . . . 2 1 . . . . Spaces Dug 107 | . . . . 4 9 . 15 . 28 9 . . 8 17 8 9 Terrain Destroyed 298 | . 25 10 . 49 33 63 24 . 28 9 15 . 8 17 8 9 Melee 63 | . . . . . . . 1 . 28 9 . . 8 17 . . Projectile 30 | . . . . 4 9 . . . . . . . . . 8 9 AOE 205 | . 25 10 . 45 24 63 23 . . . 15 . . . . . Terrain Rammed . | . . . . . . . . . . . . . . . . . Walls Destroyed . | . . . . . . . . . . . . . . . . . Machines Disabled . | . . . . . . . . . . . . . . . . . Actions | -11 -10 -10 -10 -9 -8 -7 -7 -7 -6 -5 -5 -5 -4 -3 -2 -1 --------- Run | Yrd Mat Min Exi Min Mat Fac Low Low Fac Fac Upp Upp Fac Res Res Acc Total 8600 | 89 211 46 508 289 657 666 624 18 1078 628 663 179 331 456 860 1297 Wait 1058 | 9 11 . . 73 156 3 6 . 31 311 30 . 106 55 189 78 Move 7087 | 63 144 37 507 197 434 627 608 13 988 304 629 173 190 368 626 1179 Hop 27 | . . . . . 9 2 . . 4 . . . . 1 3 8 Pick Up 55 | 4 8 1 1 1 8 11 2 . 9 . . 1 . 1 2 6 Fast Attach 40 | 7 . 2 . 1 2 2 . . 4 1 . . 2 4 10 5 Attach 43 | . 4 . . 1 6 4 . . 2 2 1 4 4 2 8 5 Detach 13 | . . . . . . . . . . 1 . . . 3 6 3 Swap 24 | . 6 . . 2 11 2 1 . 1 . . . . 1 . . Drop 49 | . . 1 . 1 9 5 2 . 10 . . 1 6 3 7 4 Fire 117 | 6 37 5 . 12 22 10 4 . . . 3 . . . 9 9 Melee 69 | . . . . . . . 1 5 29 9 . . 8 17 . . Ram 1 | . . . . . . . . . . . . . . 1 . . Kick . | . . . . . . . . . . . . . . . . . Crush 2 | . 1 . . 1 . . . . . . . . . . . . Escape Stasis 15 | . . . . . . . . . . . . . 15 . . . Rewire . | . . . . . . . . . . . . . . . . . Trap . | . . . . . . . . . . . . . . . . . Miscellaneous . | . . . . . . . . . . . . . . . . . Route ------- -11/Scrapyard -10/Materials -10/Mines -10/Exiles -9/Mines -8/Materials -7/Factory -7/Lower Caves -7/Lower Caves -6/Factory -5/Factory -5/Upper Caves -5/Upper Caves -4/Factory (discovered 2 exits: *Res / Upp) -3/Research -2/Research -1/Access History --------- Turn | Location | Event 5 | -11/Scrapyard | Discovered new exit (range 15) 110 | -11/Scrapyard | Entered Materials 281 | -10/Materials | Core integrity fell below 50% 332 | -10/Materials | Build established: Mutant 404 | -10/Materials | Discovered new exit (range 14) 451 | -10/Materials | Entered Mines 456 | -10/Mines | Core integrity fell below 20% 521 | -10/Mines | Deemed a non-threat by the Exiles lab entrance 523 | -10/Mines | Discovered new exit (range 5) 529 | -10/Mines | Entered Exiles 569 | -10/Exiles | Met 8R-AWN 597 | -10/Exiles | Met EX-HEX 643 | -10/Exiles | Met EX-BIN 688 | -10/Exiles | Aligned with FarCom system 689 | -10/Exiles | Given EX-Vault access code 728 | -10/Exiles | Opened EX-Vault 739 | -10/Exiles | Found Prototype Flight Unit 742 | -10/Exiles | Identified Flying Fortress v7 788 | -10/Exiles | Warned to stay clear of 0b10 Research branches 828 | -10/Exiles | Met EX-DEC 934 | -10/Exiles | Discovered new exit (range 14) 1051 | -10/Exiles | Visited The Gauntlet 1342 | -10/Exiles | Left Exiles lab with Flying Fortress v7 1342 | -10/Exiles | Entered Mines 1441 | -9/Mines | Learned Materials terminal intel 1751 | -9/Mines | Discovered new exit (range 15) 1773 | -9/Mines | Entered Materials 1773 | -8/Materials | Evolved 4 slots: Propulsion x2, Utility x2 1774 | -8/Materials | Loaded intel: 11 terminal locations 2263 | -8/Materials | Discovered new exit (range 6) 2266 | -8/Materials | Entered Factory 2266 | -7/Factory | Evolved 2 slots: Power x1, Propulsion x1 2570 | -7/Factory | Discovered new exit (range 16) 2577 | -7/Factory | Entered Lower Caves 2631 | -7/Lower Caves | Spotted B-75 Beast 2676 | -7/Lower Caves | Encountered a Warlord checkpoint 2689 | -7/Lower Caves | Learned location of Extension (-5) 2814 | -7/Lower Caves | Discovered new exit (range 10) 2836 | -7/Lower Caves | Entered another Lower Caves area 2849 | -7/Lower Caves | Discovered new exit (range 12) 2854 | -7/Lower Caves | Entered Factory 2854 | -6/Factory | Evolved 2 slots: Propulsion x1, Utility x1 2997 | -6/Factory | Spotted B-75 Beast 3330 | -6/Factory | Discovered new exit (range 4) 3331 | -6/Factory | Entered another Factory area 3331 | -5/Factory | Evolved 2 slots: Utility x2 3359 | -5/Factory | Build established: Infiltrator-Mutant 3770 | -5/Factory | Discovered new exit (range 8) 3775 | -5/Factory | Entered Upper Caves 3785 | -5/Upper Caves | Entered a destroyed Warlord outpost 3803 | -5/Upper Caves | Learned location of 1 exit from Factory 3826 | -5/Upper Caves | Learned Factory security intel 3952 | -5/Upper Caves | Attracted the attention of an 0b10 checkpoint 3974 | -5/Upper Caves | Attracted the attention of an 0b10 outpost 4026 | -5/Upper Caves | Discovered new exit (range 8) 4030 | -5/Upper Caves | Entered another Upper Caves area 4038 | -5/Upper Caves | Discovered new exit (range 9) 4045 | -5/Upper Caves | Identified exit to Factory 4085 | -5/Upper Caves | Attracted the attention of an 0b10 outpost 4103 | -5/Upper Caves | Entered Factory 4103 | -4/Factory | Evolved 2 slots: Utility x2 4104 | -4/Factory | Identified exit to Upper Caves 4414 | -4/Factory | Discovered new exit (range 6) 4419 | -4/Factory | Identified exit to Research 4439 | -4/Factory | Entered Research 4439 | -3/Research | Evolved 2 slots: Utility x2 4572 | -3/Research | Allied Derelicts emerged from ambush trap array 4611 | -3/Research | Discovered new exit (range 6) 4737 | -3/Research | Local machine network offline 4738 | -3/Research | Identified exit to Research 4739 | -3/Research | Entered another Research area 4739 | -2/Research | Evolved 2 slots: Power x1, Utility x1 4768 | -2/Research | Lost 8 parts (2n5u1w) 5138 | -2/Research | Found Prototype Hackware 5138 | -2/Research | Identified Exp. Hacking Suite 5215 | -2/Research | Discovered new exit (range 11) 5218 | -2/Research | Identified exit to Access 5246 | -2/Research | Entered Access 5246 | -1/Access | Evolved 2 slots: Propulsion x2 5474 | -1/Access | Spotted B-99 Colossus 5544 | -1/Access | System Shield fried by hacking feedback 5575 | -1/Access | Lost 5 parts (1n4u) 5702 | -1/Access | Core integrity fell below 50% 5746 | -1/Access | Search patrols dispatched 5772 | -1/Access | Core integrity fell below 20% 5774 | -1/Access | System corruption reached 10% 5813 | -1/Access | Destroyed by S-43 Plague with Heavy Machine Gun Last Messages --------------- reinforcements to Terminal A015. 05709_ O-32 Director locks terminal. 05726_ Connecting with Terminal... 05742_ System corrupted: Heat flow error (+212). 05746_ ALERT: Heightened foreign activity detected, multiple search patrols dispatched. 05760_ System corrupted: Energy discharge (-40). 05760_ K-01 Serf cleans the Wave Collapse Detector. 05767_ Wave Collapse Detector explodes. 05767_ K-01 Serf destroyed. 05767_ Wave Collapse Detector explodes. 05767_ Cld. Q-thruster destroyed. 05767_ Chain reaction triggered in Mic. Antimatter Reactor. 05767_ P-80 Master destroyed. 05791_ System corrupted: Heat flow error (+161). 05792_ Q-thruster destroyed. 05805_ Adv. System Shield destroyed. 05811_ XGR:6VDRHN1VMA8J8MLAUDZFLSI Map ----- +----------------------------------------------------+ | ??# ????????????????# | | ??# ?????????????????# | | ??# ########?????????????????# | | ??# ??????????????????????????# | | ??????????????????????????????# | | ??????????????????????????????# | | ??????????????????????????????# | | ??????????????????????????????# | | ??????????????????????????????###### | | ??????????????????????????????# | | ??????????????????????????????# | | ??????????????????????????????# ^ | | ??????????????????????????????# ^ | | ??????????????????????????????# | | ??????????????????????????????# | | ?????????####+#############+### | | ????????? | | ????????? | | ????????? | | ????????? | | ????????? | | ????????? | | ????????? | | ??????????# #??############ | | ########### #?????????????# | | # ##@ #?????????????# | | # ## #?????????????# | | # ## #?????????????# | | #! " ## #?????????????# | | # """ ## ############### | | # """ # | | # " # | | # ] ! #ss | | # s | | # " s# | | # """ # s | | # """ # psp | | # " #######/####### ##### | | # p## # #???? | | # "" ] # #???? | | # [ ## + ##### | | # ## # # | | # ## # # | | ########### # # | | ??????????# # # | | ??????????# # # "" | | ??????????# " # # "" | | ??????????# """ # + | | ??????????# """ # # | | ??????????# " # # | +----------------------------------------------------+ Best States ------------- Heat Dissipation 52 Energy Generation 38 Energy Capacity 440 Matter Stores 300 Matter Capacity 300 Sight Range 22 Terrain Scan Range 16 Terrain Scan Density 10 ECM Strength 1 Jamming Range 16 Cloak Strength 2 Power Amplification 50 Corruption Containment 8 Armor Coverage 450 Propulsion Shielding 33 Point Defense Rating 240 Evasion (%) 65 Targeting Accuracy 5 Launcher Accuracy 40 Recoil Reduction 2 Offensive Hacking 28 Defensive Hacking 14 Item Schematics ----------------- None Robot Schematics ------------------ None Fabricated ------------ Nothing Repaired ---------- Nothing Studied --------- None Alien Tech Used ----------------- None Achievements -------------- None Challenges ------------ None Game ------ Seed CannonTowerMace Manual? 0 Play Time 01:42:18 Cumulative 81.7 hours Start 2025.11.15 @ 14:59:10 End 2025.11.15 @ 18:12:13 Sessions 3 Manual Loads 0 Difficulty Rogue Special Mode None Game No. 111 Rogue 111 Adventurer 0 Explorer 0 Win Type - Total 1 Types 1/0/0/0/0/0/0/0/0/0 Lore% 49 Gallery% 49 Achievement% 36 Wizard Run 0 Options --------- Layout 2 ASCII 0 Keyboard 0 Movement Mouse Keybinds 0 Fullscreen 1 Font 24/Smallcaps Map View 50x44 Zoom Use 0% Tactical HUD 1 Map Filters NONE Filters NONE Steam 1 RUN: 0c6e49f7-5e81-483b-ac52-24246bf8a8ba